[Event "Schack-SM 2022: Sverigemastarklassen"]
[Site "Fyrishov, Idrottsgatan 2, Uppsala, Sweden"]
[Date "2022.07.02"]
[Round "1.5"]
[White "Smith, Axel"]
[Black "Johansson, Linus"]
[Result "1/2-1/2"]
[TimeControl "90 minutes for 40 moves + 30 minutes for the rest of the game + 30 seconds per move from move one."]
[WhiteTitle "GM"]
[BlackTitle "IM"]
[WhiteFideId "1707930"]
[BlackFideId "1711113"]
[WhiteElo "2417"]
[BlackElo "2468"]

1. c4 {[%clk 01:30:58]} {[%emt 00:00:01]} e6 {[%clk 01:30:42]} {[%emt
00:00:18]} 2. Nc3 {[%clk 01:30:24]} {[%emt 00:01:05]} d5 {[%clk 01:31:07]}
{[%emt 00:00:05]} 3. d4 {[%clk 01:30:37]} {[%emt 00:00:16]} Nf6 {[%clk
01:31:28]} {[%emt 00:00:08]} 4. cxd5 {[%clk 01:30:19]} {[%emt 00:00:50]} exd5
{[%clk 01:31:51]} {[%emt 00:00:07]} 5. Bg5 {[%clk 01:30:44]} {[%emt 00:00:04]}
c6 {[%clk 01:32:15]} {[%emt 00:00:07]} 6. e3 {[%clk 01:29:46]} {[%emt
00:01:28]} Be7 {[%clk 01:32:34]} {[%emt 00:00:10]} 7. Bd3 {[%clk 01:29:52]}
{[%emt 00:00:25]} Nbd7 {[%clk 01:32:06]} {[%emt 00:00:57]} 8. Qc2 {[%clk
01:29:16]} {[%emt 00:01:06]} Nh5 {[%clk 01:32:18]} {[%emt 00:00:17]} 9. Bxe7
{[%clk 01:29:23]} {[%emt 00:00:24]} Qxe7 {[%clk 01:32:47]} {[%emt 00:00:02]} 10.
Nge2 {[%clk 01:28:44]} {[%emt 00:01:08]} Nb6 {[%clk 01:32:54]} {[%emt
00:00:23]} 11. O-O {[%clk 01:25:42]} {[%emt 00:03:32]} g6 {[%clk 01:32:50]}
{[%emt 00:00:34]} 12. Rab1 {[%clk 01:24:47]} {[%emt 00:01:25]} O-O {[%clk
01:25:58]} {[%emt 00:07:21]} 13. b4 {[%clk 01:24:22]} {[%emt 00:00:57]} a6
{[%clk 01:23:19]} {[%emt 00:03:13]} 14. a4 {[%clk 01:24:47]} {[%emt 00:00:01]}
Ng7 {[%clk 01:23:24]} {[%emt 00:00:24]} 15. b5 {[%clk 01:19:20]} {[%emt
00:05:57]} axb5 {[%clk 01:21:22]} {[%emt 00:02:32]} 16. axb5 {[%clk 01:19:48]}
{[%emt 00:00:03]} c5 {[%clk 01:21:35]} {[%emt 00:00:16]} 17. dxc5 {[%clk
01:19:47]} {[%emt 00:00:32]} Qxc5 {[%clk 01:21:58]} {[%emt 00:00:07]} 18. Rfc1
{[%clk 01:06:34]} {[%emt 00:13:43]} Ne6 {[%clk 01:16:20]} {[%emt 00:06:07]} 19.
Qd2 {[%clk 00:59:19]} {[%emt 00:07:45]} Qe7 {[%clk 01:07:42]} {[%emt 00:09:08]}
20. Bc2 {[%clk 00:51:46]} {[%emt 00:08:03]} Rd8 {[%clk 01:03:28]} {[%emt
00:04:44]} 21. Bb3 {[%clk 00:51:33]} {[%emt 00:00:43]} Nc5 {[%clk 00:56:40]}
{[%emt 00:07:17]} 22. Qd4 {[%clk 00:42:27]} {[%emt 00:09:37]} Bf5 {[%clk
00:51:24]} {[%emt 00:05:46]} 23. Bc2 {[%clk 00:40:22]} {[%emt 00:02:36]} Bxc2
{[%clk 00:32:44]} {[%emt 00:19:10]} 24. Rxc2 {[%clk 00:40:50]} {[%emt
00:00:01]} Qd6 {[%clk 00:29:51]} {[%emt 00:03:23]} 25. Qb4 {[%clk 00:31:58]}
{[%emt 00:09:23]} Ne6 {[%clk 00:27:18]} {[%emt 00:03:02]} 26. Qxd6 {[%clk
00:31:07]} {[%emt 00:01:22]} Rxd6 {[%clk 00:27:47]} {[%emt 00:00:01]} 27. Rd2
{[%clk 00:28:35]} {[%emt 00:03:01]} Rad8 {[%clk 00:24:09]} {[%emt 00:04:08]} 28.
Rbd1 {[%clk 00:27:16]} {[%emt 00:01:50]} R6d7 {[%clk 00:24:16]} {[%emt
00:00:22]} 29. g3 {[%clk 00:23:51]} {[%emt 00:03:56]} Kf8 {[%clk 00:24:02]}
{[%emt 00:00:43]} 30. Nf4 {[%clk 00:12:50]} {[%emt 00:11:31]} Nxf4 {[%clk
00:23:17]} {[%emt 00:01:15]} 31. gxf4 {[%clk 00:13:19]} {[%emt 00:00:01]} Ke7
{[%clk 00:21:14]} {[%emt 00:02:33]} 32. Kg2 {[%clk 00:13:18]} {[%emt 00:00:31]}
Ke6 {[%clk 00:20:31]} {[%emt 00:01:12]} 33. Ne2 {[%clk 00:12:58]} {[%emt
00:00:50]} Rc8 {[%clk 00:19:32]} {[%emt 00:01:30]} 34. Nd4+ {[%clk 00:13:02]}
{[%emt 00:00:26]} Ke7 {[%clk 00:19:47]} {[%emt 00:00:14]} 35. h4 {[%clk
00:10:28]} {[%emt 00:03:05]} h5 {[%clk 00:16:23]} {[%emt 00:03:54]} 36. Ra2
{[%clk 00:07:14]} {[%emt 00:03:45]} Nc4 {[%clk 00:14:56]} {[%emt 00:01:56]} 37.
Nb3 {[%clk 00:04:42]} {[%emt 00:03:02]} Ke6 {[%clk 00:11:27]} {[%emt 00:03:58]}
38. Nd4+ {[%clk 00:04:57]} {[%emt 00:00:16]} Kd6 {[%clk 00:09:55]} {[%emt
00:02:02]} 39. Rc2 {[%clk 00:02:47]} {[%emt 00:02:40]} Rdc7 {[%clk 00:04:56]}
{[%emt 00:05:30]} 40. Kg3 {[%clk 00:01:21]} {[%emt 00:01:55]} f5 {[%clk
00:02:07]} {[%emt 00:03:19]} 41. Kf3 {[%clk 00:22:27]} {[%emt 00:09:24]} Ke7
{[%clk 00:28:59]} {[%emt 00:03:38]} 42. Rg1 {[%clk 00:18:10]} {[%emt 00:04:46]}
Kf7 {[%clk 00:28:30]} {[%emt 00:00:59]} 43. Ra1 {[%clk 00:14:43]} {[%emt
00:03:59]} Nd6 {[%clk 00:27:24]} {[%emt 00:01:35]} 44. Rxc7+ {[%clk 00:14:28]}
{[%emt 00:00:45]} Rxc7 {[%clk 00:27:53]} {[%emt 00:00:02]} 45. b6 {[%clk
00:08:44]} {[%emt 00:06:13]} Rc4 {[%emt 00:05:15]} 46. Ra5 {[%clk 00:08:34]}
Rb4 {[%clk 00:24:11]} {[%emt 00:00:07]} 47. Rxd5 {[%clk 00:08:56]} {[%emt
00:00:08]} Rxb6 {[%clk 00:24:34]} {[%emt 00:00:08]} 48. Nb3 {[%clk 00:03:46]}
{[%emt 00:05:40]} Ne4 {[%clk 00:22:38]} {[%emt 00:02:25]} 49. Nd2 {[%clk
00:02:58]} {[%emt 00:01:19]} Nf6 {[%clk 00:22:23]} {[%emt 00:00:44]} 50. Rd4
{[%clk 00:02:43]} {[%emt 00:00:45]} Rb2 {[%clk 00:21:27]} {[%emt 00:01:26]} 51.
e4 {[%clk 00:00:54]} {[%emt 00:02:19]} fxe4+ {[%clk 00:19:24]} {[%emt
00:02:34]} 52. Nxe4 {[%clk 00:01:23]} Rb3+ {[%clk 00:19:29]} {[%emt 00:00:25]}
53. Kg2 {[%clk 00:01:43]} {[%emt 00:00:11]} Nxe4 {[%clk 00:18:54]} {[%emt
00:01:04]} 54. Rxe4 {[%clk 00:02:12]} {[%emt 00:00:01]} Kf6 {[%clk 00:18:59]}
{[%emt 00:00:25]} 55. Re5 {[%clk 00:02:05]} {[%emt 00:00:38]} b5 {[%clk
00:11:43]} {[%emt 00:07:45]} 56. f3 {[%clk 00:01:56]} {[%emt 00:00:39]} Rb1
{[%clk 00:10:08]} {[%emt 00:02:05]} 57. Kg3 {[%clk 00:01:31]} {[%emt 00:00:55]}
b4 {[%clk 00:09:55]} {[%emt 00:00:44]} 58. Rb5 {[%clk 00:01:25]} {[%emt
00:00:35]} b3 {[%clk 00:09:52]} {[%emt 00:00:33]} 59. f5 {[%clk 00:00:48]}
{[%emt 00:01:06]} gxf5 {[%clk 00:06:41]} {[%emt 00:03:41]} 60. Kf4 {[%clk
00:01:12]} {[%emt 00:00:07]} Ke6 {[%clk 00:05:38]} {[%emt 00:01:34]} 61. Rxf5
{[%clk 00:00:57]} {[%emt 00:00:45]} b2 {[%clk 00:02:45]} {[%emt 00:03:23]} 62.
Rb5 {[%clk 00:01:23]} {[%emt 00:00:04]} Kf6 {[%clk 00:03:00]} {[%emt 00:00:14]}
63. Rb6+ {[%clk 00:01:42]} {[%emt 00:00:11]} Kf7 {[%clk 00:03:24]} {[%emt
00:00:05]} 64. Kf5 {[%clk 00:01:54]} {[%emt 00:00:18]} Rf1 {[%clk 00:03:47]}
{[%emt 00:00:08]} 65. Rb7+ {[%clk 00:02:07]} {[%emt 00:00:17]} Kf8 {[%clk
00:04:11]} {[%emt 00:00:05]} 66. Rxb2 {[%clk 00:02:33]} {[%emt 00:00:05]} Rxf3+
{[%clk 00:04:36]} {[%emt 00:00:05]} 67. Kg6 {[%clk 00:02:50]} {[%emt 00:00:12]}
Rg3+ {[%clk 00:04:59]} {[%emt 00:00:08]} 68. Kxh5 {[%clk 00:03:00]} {[%emt
00:00:20]} Kg7 {[%clk 00:04:34]} {[%emt 00:00:55]} 69. Rb7+ {[%clk 00:03:29]}
{[%emt 00:00:01]} Kh8 {[%clk 00:02:06]} {[%emt 00:02:58]} 70. Kh6 {[%clk
00:03:47]} {[%emt 00:00:12]} Rg1 {[%clk 00:02:01]} {[%emt 00:00:34]} 71. Rb5
{[%clk 00:02:49]} {[%emt 00:01:29]} Rg7 {[%clk 00:02:05]} {[%emt 00:00:26]} 72.
Rb8+ {[%clk 00:02:50]} {[%emt 00:00:30]} Rg8 {[%clk 00:02:30]} {[%emt
00:00:04]} 73. Rb7 {[%clk 00:03:15]} {[%emt 00:00:05]} Ra8 {[%clk 00:02:38]}
{[%emt 00:00:22]} 74. Rh7+ {[%clk 00:03:31]} {[%emt 00:00:13]} Kg8 {[%clk
00:03:04]} {[%emt 00:00:05]} 75. Rg7+ {[%clk 00:03:57]} {[%emt 00:00:03]} Kh8
{[%clk 00:03:29]} {[%emt 00:00:05]} 76. h5 {[%clk 00:04:09]} {[%emt 00:00:19]}
Ra6+ {[%clk 00:03:35]} {[%emt 00:00:24]} 77. Rg6 {[%clk 00:04:37]} {[%emt
00:00:02]} Ra7 {[%clk 00:03:55]} {[%emt 00:00:09]} 78. Rf6 {[%clk 00:04:13]}
{[%emt 00:00:54]} Rh7+ {[%clk 00:04:18]} {[%emt 00:00:07]} 79. Kg5 {[%clk
00:04:41]} {[%emt 00:00:03]} Rg7+ {[%clk 00:04:41]} {[%emt 00:00:07]} 80. Rg6
{[%clk 00:05:05]} {[%emt 00:00:06]} Rxg6+ {[%clk 00:04:37]} {[%emt 00:00:34]}
81. hxg6 {[%clk 00:05:31]} {[%emt 00:00:05]} Kg7 {[%clk 00:05:01]} {[%emt
00:00:06]} 82. Kf5 {[%clk 00:05:57]} {[%emt 00:00:03]} Kg8 {[%clk 00:05:27]}
{[%emt 00:00:04]} 83. Kf6 {[%clk 00:06:22]} {[%emt 00:00:04]} Kf8 {[%clk
00:05:54]} {[%emt 00:00:04]} 84. g7+ {[%clk 00:06:49]} {[%emt 00:00:03]} Kg8
{[%clk 00:06:18]} {[%emt 00:00:05]} 85. Kg6 {[%clk 00:07:16]} {[%emt 00:00:03]}
1/2-1/2

[ePGN "0.1;DGT LiveChess/2.2.5"]

[Event "Schack-SM 2022: Sverigemastarklassen"]
[Site "Fyrishov, Idrottsgatan 2, Uppsala, Sweden"]
[Date "2022.07.02"]
[Round "1.1"]
[White "Westerberg, Jonathan"]
[Black "Cramling, Pia"]
[Result "1/2-1/2"]
[TimeControl "90 minutes for 40 moves + 30 minutes for the rest of the game + 30 seconds per move from move one."]
[WhiteTitle "GM"]
[BlackTitle "GM"]
[WhiteFideId "1701754"]
[BlackFideId "1700030"]
[WhiteElo "2476"]
[BlackElo "2459"]

1. c4 {[%clk 01:21:25]} {[%emt 00:09:34]} c5 {[%clk 01:29:30]} {[%emt
00:01:31]} 2. Nc3 {[%clk 01:21:29]} {[%emt 00:00:24]} g6 {[%clk 01:28:22]}
{[%emt 00:01:39]} 3. g4 {[%clk 01:18:41]} {[%emt 00:03:16]} d6 {[%clk
01:13:16]} {[%emt 00:15:38]} 4. Bg2 {[%clk 01:17:16]} {[%emt 00:01:54]} Nc6
{[%clk 01:13:29]} {[%emt 00:00:18]} 5. g5 {[%clk 01:17:04]} {[%emt 00:00:41]}
h6 {[%clk 01:10:26]} {[%emt 00:03:34]} 6. h4 {[%clk 01:15:21]} {[%emt
00:02:12]} hxg5 {[%clk 01:09:46]} {[%emt 00:01:11]} 7. hxg5 {[%clk 01:15:46]}
{[%emt 00:00:05]} Rxh1 {[%clk 01:10:06]} {[%emt 00:00:09]} 8. Bxh1 {[%clk
01:16:10]} {[%emt 00:00:06]} Bg7 {[%clk 01:09:16]} {[%emt 00:01:21]} 9. d3
{[%clk 01:15:56]} {[%emt 00:00:43]} Qd7 {[%clk 01:03:05]} {[%emt 00:06:41]} 10.
e4 {[%clk 01:09:57]} {[%emt 00:06:30]} b6 {[%clk 01:01:57]} {[%emt 00:01:38]}
11. Be3 {[%clk 01:10:02]} {[%emt 00:00:24]} Bb7 {[%clk 01:01:22]} {[%emt
00:01:06]} 12. Qd2 {[%clk 01:07:39]} {[%emt 00:02:52]} O-O-O {[%clk 00:55:52]}
{[%emt 00:06:01]} 13. O-O-O {[%clk 01:06:01]} {[%emt 00:02:08]} e6 {[%clk
00:38:49]} {[%emt 00:17:33]} 14. Nge2 {[%clk 01:03:16]} {[%emt 00:03:15]} Nge7
{[%clk 00:38:09]} {[%emt 00:01:11]} 15. d4 {[%clk 01:00:26]} {[%emt 00:03:20]}
cxd4 {[%clk 00:37:08]} {[%emt 00:01:31]} 16. Nxd4 {[%clk 01:00:50]} {[%emt
00:00:06]} Nxd4 {[%clk 00:36:21]} {[%emt 00:01:16]} 17. Bxd4 {[%clk 01:01:16]}
{[%emt 00:00:05]} Bxd4 {[%clk 00:36:20]} {[%emt 00:00:30]} 18. Qxd4 {[%clk
01:01:41]} {[%emt 00:00:04]} e5 {[%clk 00:35:54]} {[%emt 00:00:57]} 19. Qe3
{[%clk 01:01:41]} {[%emt 00:00:30]} Kb8 {[%clk 00:30:54]} {[%emt 00:05:30]} 20.
Bg2 {[%clk 00:59:32]} {[%emt 00:02:39]} Rh8 {[%clk 00:29:10]} {[%emt 00:02:13]}
21. Qg3 {[%clk 00:52:06]} {[%emt 00:07:57]} Qe6 {[%clk 00:27:04]} {[%emt
00:02:35]} 22. b3 {[%clk 00:52:35]} {[%emt 00:00:03]} Nc6 {[%clk 00:27:20]}
{[%emt 00:00:14]} 23. Nb5 {[%clk 00:52:00]} {[%emt 00:01:05]} Rd8 {[%clk
00:27:35]} {[%emt 00:00:14]} 24. f4 {[%clk 00:49:11]} {[%emt 00:03:20]} exf4
{[%clk 00:17:28]} {[%emt 00:10:36]} 25. Qxf4 {[%clk 00:47:08]} {[%emt
00:02:33]} Ne5 {[%clk 00:16:33]} {[%emt 00:01:25]} 26. Qf6 {[%clk 00:44:49]}
{[%emt 00:02:49]} Qxf6 {[%clk 00:15:50]} {[%emt 00:01:13]} 27. gxf6 {[%clk
00:45:15]} {[%emt 00:00:03]} Bc6 {[%clk 00:15:35]} {[%emt 00:00:46]} 28. Nd4
{[%clk 00:38:03]} {[%emt 00:07:43]} Bd7 {[%clk 00:14:27]} {[%emt 00:01:37]} 29.
Rh1 {[%clk 00:37:43]} {[%emt 00:00:51]} Rf8 {[%clk 00:10:39]} {[%emt 00:04:17]}
30. Nf3 {[%clk 00:34:56]} {[%emt 00:03:16]} Ng4 {[%clk 00:10:04]} {[%emt
00:01:06]} 31. Ng5 {[%clk 00:35:10]} {[%emt 00:00:16]} Nxf6 {[%clk 00:09:16]}
{[%emt 00:01:18]} 32. Rf1 {[%clk 00:35:30]} {[%emt 00:00:08]} Ng4 {[%clk
00:09:29]} {[%emt 00:00:18]} 33. Rxf7 {[%clk 00:35:19]} {[%emt 00:00:42]} Rxf7
{[%clk 00:09:21]} {[%emt 00:00:38]} 34. Nxf7 {[%clk 00:35:44]} {[%emt
00:00:04]} Kc7 {[%clk 00:09:13]} {[%emt 00:00:39]} 35. Kd2 {[%clk 00:33:59]}
{[%emt 00:02:15]} Ne5 {[%clk 00:07:49]} {[%emt 00:01:53]} 36. Ng5 {[%clk
00:33:00]} {[%emt 00:01:30]} a5 {[%clk 00:07:08]} {[%emt 00:01:12]} 37. Kc3
{[%clk 00:28:26]} {[%emt 00:05:04]} b5 {[%clk 00:03:46]} {[%emt 00:03:51]} 38.
cxb5 {[%clk 00:26:14]} {[%emt 00:02:42]} Bxb5 {[%clk 00:04:14]} {[%emt
00:00:02]} 39. Bh3 {[%clk 00:19:32]} {[%emt 00:07:10]} Be2 {[%clk 00:03:38]}
{[%emt 00:01:08]} 40. Ne6+ {[%clk 00:18:59]} {[%emt 00:01:04]} Kb6 {[%emt
00:04:41]} 41. Ng5 {[%clk 00:15:13]} Kc5 {[%clk 00:00:34]} {[%emt 00:03:39]} 42.
a3 {[%clk 00:14:46]} {[%emt 00:00:56]} Ba6 {[%clk 00:29:26]} {[%emt 00:01:38]}
43. b4+ {[%clk 00:42:38]} {[%emt 00:02:38]} axb4+ {[%clk 00:25:51]} {[%emt
00:04:06]} 44. axb4+ {[%clk 00:38:03]} {[%emt 00:05:04]} 1/2-1/2